Cogmind - Beta 13 @@@ ROGUE MODE // 2024.07.16 @ 22:37:21 Player: Wabbajack Result: Destroyed by G-47 Trooper with Particle Gun Performance ------------- Evolutions (0) 0 Regions Visited (1) 200 Robots Destroyed (10) 50 Value Destroyed (263) 263 Prototype IDs (2) 40 Alien Tech Used (0) 0 Bonus (0) 0 TOTAL SCORE: 553 Bonus ------- None Cogmind --------- Core Integrity 0/250 Matter 211/300 Energy 76/100 System Corruption 0% Temperature Hot (268) Movement Walking (120) Location -10/Materials Parts ------- > --- POWER (1) -------- (None) > --- PROPULSION (2) --- Aluminum Leg > --- UTILITY (2) ------ Seismic Detector > --- WEAPON (2) ------- Beam Cannon > --- INVENTORY (5) ---- Light Ion Engine Aluminum Leg Aluminum Leg Small Storage Unit Peak State ------------ > --- POWER ------------ Ion Engine > --- PROPULSION ------- Aluminum Leg Aluminum Leg > --- UTILITY ---------- Small Storage Unit Seismic Detector > --- WEAPON ----------- Assault Rifle Assault Rifle > --- INVENTORY -------- Light Ion Engine Aluminum Leg Aluminum Leg Beam Cannon [Rating: 7] Favorites ----------- Power Ion Engine Engine Ion Engine Propulsion Aluminum Leg Leg Aluminum Leg Utility Small Storage Unit Device Seismic Detector Storage Small Storage Unit Weapon Assault Rifle Energy Cannon Beam Cannon Ballistic Gun Assault Rifle Build | -11 -10 ------- Run | Yrd Mat Slots Evolved . | . . Power . | . . Propulsion . | . . Utility . | . . Weapon . | . . Parts Attached 14 | 7 7 Power 2 | 2 . Engine 2 | 2 . Core . | . . Reactor . | . . Propulsion 5 | 2 3 Treads . | . . Leg 5 | 2 3 Wheel . | . . Hover . | . . Flight . | . . Utility 2 | 1 1 Device 1 | . 1 Storage 1 | 1 . Processor . | . . Hackware . | . . Protection . | . . Artifact . | . . Weapon 5 | 2 3 Energy Gun . | . . Energy Cannon 1 | . 1 Ballistic Gun 4 | 2 2 Ballistic Cannon . | . . Launcher . | . . Special Weapon . | . . Impact Weapon . | . . Slashing Weapon . | . . Piercing Weapon . | . . Special Melee Weapon . | . . Unidentified Prototypes . | . . Parts Lost 7 | . 7 Power 1 | . 1 Propulsion 2 | . 2 Utility . | . . Weapon 4 | . 4 Highest Loss Streak 7 | . 7 To Critical Strikes . | . . Average Slot Usage (%) 88 | . 88 Engine 13 | . 13 Leg 26 | . 26 Device 7 | . 7 Storage 12 | . 12 Energy Cannon 1 | . 1 Ballistic Gun 25 | . 25 Naked Turns . | . . Heaviest Build 15 | 14 15 Greatest Support 20 | 20 20 Greatest Overweight (x) 1 | . 1 Average Overweight (x) . | . . Largest Inventory Capacity 8 | 8 8 Average Capacity 7 | 6 7 Most Carried 6 | 1 6 Average Carried 2 | . 3 Final Capacity 8 | 8 5 Final Carried 4 | 1 4 Class Distribution -------------------- 100% | Mutant Dominant Class ---------------- Mutant | -10/Materials Resources | -11 -10 ----------- Run | Yrd Mat Matter Collected 374 | 238 136 Remotely . | . . Salvage Created 326 | . 326 Parts 21 | . 21 Haulers Intercepted . | . . Recyclers Shooed . | . . Parts Field Recycled . | . . Retrieved Matter . | . . Parts Self-Destructed . | . . Prevented . | . . Kills | -11 -10 ------- Run | Yrd Mat Combat Hostiles Destroyed 9 | . 9 Guns 6 | . 6 Cannons 3 | . 3 Classes Destroyed 3 | . 3 Operator 1 | . 1 Swarmer 3 | . 3 Grunt 6 | . 6 Best Kill Streak 4 | . 4 Combat Bots Only 4 | . 4 Max Kills in Single Turn 2 | . 2 Gunslinging . | . . Exploded . | . . Melee . | . . Uniques/NPCs Destroyed . | . . Combat | -11 -10 -------- Run | Yrd Mat Hostile Shots Fired 111 | . 111 Missed 23 | . 23 Damage Taken 1047 | . 1047 Core 255 | . 255 Absorbed by Shields . | . . Core Remaining (%) 100 | 100 . Volleys Fired 41 | . 41 Largest 2 | . 2 Hottest 80 | . 80 Shots Fired 70 | . 70 Gun 56 | . 56 Cannon 14 | . 14 Launcher . | . . Special . | . . Kinetic 56 | . 56 Thermal 14 | . 14 Explosive . | . . Electromagnetic . | . . Robot Hit Streak 9 | . 9 Robot Miss Streak 3 | . 3 Penetration Max . | . . Secondary Targets . | . . Shots Hit Robots 44 | . 44 Core Hits 16 | . 16 Critical Kills . | . . Critical Parts Destroyed . | . . Critical Strikes . | . . Melee Attacks . | . . Impact . | . . Slashing . | . . Piercing . | . . Sneak Attacks . | . . Combat Hostiles . | . . Follow-up Attacks . | . . Damage Inflicted 626 | . 626 Guns 396 | . 396 Cannons 230 | . 230 Explosions . | . . Melee . | . . Ramming . | . . Kinetic 396 | . 396 Thermal 230 | . 230 Explosive . | . . Electromagnetic . | . . Impact . | . . Slashing . | . . Piercing . | . . Highest Corruption . | . . Average Corruption . | . . Corruption Purged . | . . Corruption Blocked . | . . Overload Shots . | . . Overflow Damage . | . . Projectiles . | . . Explosions . | . . Melee . | . . Knockbacks . | . . Impact . | . . Kinetic . | . . Secondary . | . . Self-Inflicted Damage . | . . Shots . | . . Rammed . | . . Targets Rammed . | . . Kicked . | . . Crushed . | . . Highest Temperature 259 | . 259 Average Temperature 85 | . 85 Received Heat Transfer 522 | . 522 Siege Activations . | . . Robots Corrupted . | . . Combat Hostiles . | . . Parts Fried . | . . Impact Corruptions . | . . Robots Melted . | . . Combat Hostiles . | . . Parts Melted . | . . Heat Transferred 481 | . 481 Parts Sabotaged . | . . Parts Stolen . | . . Parts Stripped . | . . Power Chain Reactions . | . . Alert | -11 -10 ------- Run | Yrd Mat Peak Influence 216 | . 216 Initial . | . . Average 83 | . 98 Maximum Alert Level 1 | . 1 Low Security (%) 98 | 100 97 Level 1 1 | . 2 Level 2 . | . . Level 3 . | . . Level 4 . | . . Level 5 . | . . High Security . | . . Max Security . | . . Squads Dispatched 2 | . 2 Investigation 1 | . 1 Extermination . | . . Reinforcement 1 | . 1 Assault . | . . Garrison . | . . Intercept . | . . Searches Triggered . | . . Construction Impeded . | . . Haulers Reinforced . | . . Active Scanning Responses . | . . Cargo Convoy Interrupts . | . . Stealth | -11 -10 --------- Run | Yrd Mat Distress Signals 1 | . 1 Communications Jammed . | . . Distress Signals . | . . Times Spotted 14 | . 14 Peak Tracking Total 8 | . 8 Tactical Retreats . | . . Traps | -11 -10 ------- Run | Yrd Mat Traps Triggered 1 | . 1 Indirectly . | . . Trap Hack Attempts . | . . Triggered . | . . Disarmed . | . . Reprogrammed . | . . Reused . | . . Traps Extracted . | . . Installed . | . . Triggered . | . . Machines | -11 -10 ---------- Run | Yrd Mat Machines Disabled . | . . Max in Single Turn . | . . Machines Repaired . | . . Machines Dismantled . | . . Machines Sabotaged . | . . Overloaded Fab Kills . | . . Hacking | -11 -10 --------- Run | Yrd Mat Machines Accessed 3 | . 3 Terminals 3 | . 3 Fabricators . | . . Repair Stations . | . . Recycling Units . | . . Scanalyzers . | . . Garrison Access . | . . Total Hacks 6 | . 6 Successful 2 | . 2 Failed 4 | . 4 Catastrophic 1 | . 1 Database Lockouts . | . . Manual 4 | . 4 Terminals 6 | . 6 Fabricators . | . . Repair Stations . | . . Recycling Units . | . . Scanalyzers . | . . Garrison Access . | . . Terminal Hacks 2 | . 2 Prototype ID Bank 1 | . 1 Hauler Manifests 1 | . 1 Fabricator Hacks . | . . Repair Station Hacks . | . . Recycling Unit Hacks . | . . Scanalyzer . | . . Garrison Access Hacks . | . . Unauthorized Hacks . | . . Terminals . | . . Fabricators . | . . Repair Stations . | . . Recycling Units . | . . Scanalyzers . | . . Garrison Access . | . . Data Cores Recovered 1 | . 1 Used . | . . Hacking Detections 1 | . 1 Full Trace Events . | . . Feedback Events . | . . Feedback Blocked . | . . Robot Schematics Acquired . | . . Robots Built . | . . Authchips . | . . Time . | . . Total Robot Build Rating . | . . Part Schematics Acquired . | . . Parts Built . | . . Authchips . | . . Time . | . . Total Part Build Rating . | . . Parts Repaired . | . . Time . | . . Parts Recycled . | . . Recycled Matter . | . . Retrieved Matter . | . . Retrieved Components . | . . Parts Scanalyzed . | . . Part Schematics Acquired . | . . Parts Damaged . | . . Bothacking | -11 -10 ------------ Run | Yrd Mat Used RIF Installer . | . . Robots Hacked . | . . Non-combat . | . . Combat . | . . Robot Hacks Applied . | . . Relay Couplers Released . | . . Fabnet Peak Effective % . | . . Robots Rewired . | . . Allies Hacked . | . . Hacks Repelled . | . . Allies | -11 -10 -------- Run | Yrd Mat Total Allies . | . . Largest Group . | . . Highest-Rated Group . | . . Highest-Rated Ally . | . . Total Orders . | . . Ally Attacks . | . . Total Damage . | . . Kills . | . . Allies Corrupted . | . . Allies Melted . | . . Intel | -11 -10 ------- Run | Yrd Mat Robot Analysis Total . | . . Derelict Logs Recovered . | . . Drone Launches . | . . Drone Recoveries . | . . Exploration | -11 -10 ------------- Run | Yrd Mat Turns Passed 459 | 71 388 Spaces Moved 263 | 54 209 Core 5 | 5 . Treads . | . . Legs 258 | 49 209 Wheels . | . . Hover . | . . Flight . | . . Fastest Speed 50 | 50 120 Average Speed 120 | 113 122 Slowest Speed 190 | 120 190 Overloaded Moves . | . . Propulsion Burnouts . | . . Robots Hopped . | . . Cave-ins Triggered . | . . Exploration Rate (%) 18 | 3 33 Regions Visited 1 Branch Regions . Pre-discovered Areas . | . . Known Exits Taken . | . . Unknown Exits Taken 1 | 1 . Scrap Searched . | . . Spaces Dug . | . . Terrain Destroyed . | . . Melee . | . . Projectile . | . . AOE . | . . Terrain Rammed . | . . Walls Destroyed . | . . Machines Disabled . | . . Actions | -11 -10 --------- Run | Yrd Mat Total 333 | 60 273 Wait 11 | . 11 Move 262 | 53 209 Hop . | . . Pick Up 4 | . 4 Fast Attach 7 | 6 1 Attach 4 | . 4 Detach 1 | . 1 Swap 3 | 1 2 Drop . | . . Fire 41 | . 41 Melee . | . . Ram . | . . Kick . | . . Crush . | . . Escape Stasis . | . . Rewire . | . . Trap . | . . Miscellaneous . | . . Route ------- -11/Scrapyard -10/Materials (discovered 1 exit: [*Mat]) History --------- Turn | Location | Event 46 | -11/Scrapyard | Discovered new exit (range 15) 72 | -11/Scrapyard | Entered Materials 317 | -10/Materials | Build established: Mutant 369 | -10/Materials | Discovered new exit (range 10) 391 | -10/Materials | Core integrity fell below 50% 440 | -10/Materials | Core integrity fell below 20% 460 | -10/Materials | Destroyed by G-47 Trooper with Particle Gun Last Messages --------------- 00343_ T-07 Excavator is excavating. 00348_ ALERT: Hostiles spotted, dispatching reinforcements to Terminal M008. 00348_ R-06 Scavenger collects Lgt. Assault Rifle. 00351_ T-07 Excavator is excavating. 00362_ U-05 Engineer lays Concrete. 00369_ EXIT=FOUND 00386_ Assault Rifle destroyed. 00389_ Aluminum Leg destroyed. 00390_ Assault Rifle destroyed. 00393_ M-13 Machinist repairs G-34 Mercenary. 00400_ M-13 Machinist repairs G-47 Trooper. 00420_ Lgt. Assault Rifle destroyed. 00435_ G-47 Trooper destroyed. 00435_ G-34 Mercenary destroyed. 00437_ Assault Rifle destroyed. 00440_ G-34 Mercenary destroyed. 00452_ Ion Engine destroyed. 00456_ Aluminum Leg destroyed. Map ----- +----------------------------------------------------+ | | | | | ?????????????????????????????? | | ?????????????????????????????? | | ?????????????????????????????? | | ?????????????????????????????? | | #########????????????????????? | | #????????????????????? | | """"" #????????????????????? | | """"" #????????????????????? | | """"" #????????????????????? | | """"" #????????????????????? | | """"" #????????????????????? | | """"" #????????????????????? | | """"" #????????????????????? | | #????????????????????? | | #########????????????????????? | | ### ? ?????????????????????? | | # ? ??????????????????????? | | # ??????????????????###### | | !# ???????????????##### # | | # #???????????????# # # | | # #???????????????# < #% # | | + #???????????????# %#=[ # | | * # #???????????????# %g[* # | | ### ##??????????????# [%#@"" # | | = #??????????????# *# Y" # | | #??????????????# # "" # | | #??#???????????# # # | | ## #??# ###???????# ###### | | # #??# ###?????# #????? | | # ##### ##T####### #????? | | # #????? | | # #????? | | # #????? | | ## ###############????? | | # #??????????????????? | | #??????????????????? | | ??????????????????? | | " # ?????????????????? | | """ ###????????????????? | | """ #??????????????????? | | """ #??????????????????? | | ?" #??????????????????? | | ?"" #??????????????????? | | ??" +??????????????????? | | ??" #??????????????????? | | ??? ???????????????????? | | ?????????????????????????????? | | ?????????????????????????????? | +----------------------------------------------------+ Best States ------------- Heat Dissipation 25 Energy Generation 10 Energy Capacity 250 Matter Stores 300 Matter Capacity 300 Sight Range 16 Terrain Scan Density 10 Evasion (%) 55 Item Schematics ----------------- None Robot Schematics ------------------ None Fabricated ------------ Nothing Alien Tech Used ----------------- None Achievements -------------- None Challenges ------------ None Game ------ Seed UtilityThrusterStick Manual? 0 Play Time 00:08:59 Cumulative 22.9 hours Start 2024.07.16 @ 22:30:52 End 2024.07.16 @ 22:37:21 Sessions 1 Manual Loads 0 Difficulty Rogue Special Mode None Game No. 38 Rogue 37 Adventurer 1 Explorer 0 Win Type - Total 0 Types 0/0/0/0/0/0/0/0/0 Lore% 11 Gallery% 23 Achievement% 16 Wizard Run 0 Options --------- Layout 1 ASCII 0 Keyboard 1 Movement Numpad Keybinds 0 Fullscreen 1 Font 24/Smallcaps Map View 50x40 Zoom Use 0% Tactical HUD 1 Map Filters NONE Filters NONE Steam 1 RUN: 71cc35a5-cdc7-4cbd-aad1-fa5b6919f112